bitfinex-derivatives/quotes_BTCF0:USTF0_20250218
["timestamp","ask_amount","ask_price","bid_price","bid_amount"]
[1739915915094,0.01700725,95037.0,95034.0,0.210552]
[1739915915394,0.001,95035.0,95034.0,0.211552]
[1739915916692,0.0592,95039.0,95028.0,0.0526408]
[1739915916899,0.0592,95039.0,95038.0,0.2105431]
[1739915917996,0.0602,95039.0,95038.0,0.2115431]
[1739915918790,0.001,95039.0,95038.0,0.22893599]
[1739915920803,0.12805637,95060.0,95038.0,0.22893599]
[1739915920804,0.3608,95060.0,95038.0,0.01839289]
[1739915920992,0.0592,95053.0,95052.0,0.2105121]
[1739915921789,0.07642664,95053.0,95052.0,0.2105121]
[1739915923003,0.07642664,95053.0,95052.0,0.2115121]
[1739915923503,0.0592,95053.0,95052.0,0.2115121]
[1739915924602,0.07678197,95053.0,95052.0,0.2115121]
[1739915925391,0.0592,95053.0,95052.0,0.2115121]
[1739915928699,0.0566,95055.0,95054.0,0.2105077]
[1739915928906,0.0571,95058.0,95055.0,0.2105054]
[1739915930111,0.0571,95058.0,95055.0,0.2115054]
[1739915930307,0.01739321,95063.0,95055.0,0.2115054]
[1739915930607,0.0588,95062.0,95055.0,0.2115054]
[1739915930906,0.0588,95062.0,95055.0,0.001]
[1739915931110,0.2105032,95056.0,95055.0,0.001]
[1739915931310,0.3608,95060.0,95038.0,0.0566]
[1739915931608,0.2105249,95047.0,95038.0,0.0566]
[1739915931806,0.0553,95046.0,95038.0,0.0566]
[1739915932009,0.2105285,95045.0,95038.0,0.0566]
[1739915932903,0.2105285,95045.0,95043.0,0.3618]
[1739915934507,0.0547,95044.0,95043.0,0.3618]
[1739915936308,0.0567,95044.0,95043.0,0.3618]
[1739915938110,0.10790024,95044.0,95043.0,0.001]
[1739915940915,0.2105391,95040.0,95037.0,0.00015788]
[1739915941417,0.0584,95043.0,95037.0,0.00015788]
[1739915941614,0.2105422,95039.0,95037.0,0.00015788]
[1739915941814,0.5713422,95039.0,95037.0,0.00015788]
[1739915942116,0.3608,95039.0,95037.0,0.00015788]
[1739915942318,0.5713422,95039.0,95037.0,0.00015788]
[1739915943720,0.5723422,95039.0,95037.0,0.00115788]
[1739915945716,0.05120024,95038.0,95037.0,0.00115788]
[1739915945909,0.26174334,95038.0,95037.0,0.00115788]
[1739915947231,0.26274334,95038.0,95037.0,0.00115788]
[1739915948119,0.05220024,95038.0,95012.0,0.2662005]
[1739915948419,0.2105732,95025.0,95019.0,0.2105851]
[1739915948723,0.3608,95028.0,95016.0,0.0543]
[1739915948925,0.3608,95028.0,95023.0,0.2105755]
[1739915949423,0.2105727,95025.0,95023.0,0.2105755]
[1739915949923,0.2105741,95024.0,95023.0,0.2105755]
[1739915951514,0.2125741,95024.0,95023.0,0.2105755]
[1739915951716,0.002,95024.0,95023.0,0.2105755]
[1739915953025,0.001,95024.0,95016.0,0.0544578]
[1739915953227,0.001,95024.0,95023.0,0.2105763]
[1739915953620,0.05120024,95024.0,95023.0,0.2105763]
[1739915953819,0.05320024,95024.0,95023.0,0.2105763]
[1739915954521,0.05324665,95024.0,95023.0,0.2105763]
[1739915955127,0.05916925,95029.0,95028.0,0.2105653]
[1739915957121,0.00015731,95035.0,95028.0,0.3608]
[1739915957323,0.00015731,95035.0,95034.0,0.210552]
[1739915958021,0.00015731,95035.0,95034.0,0.22686458]
[1739915958218,0.00015731,95035.0,95034.0,0.210552]
[1739915958816,0.00015731,95035.0,95034.0,0.22680392]
[1739915959014,0.00015731,95035.0,95034.0,0.210552]
[1739915965824,0.00015731,95035.0,95034.0,0.212552]
[1739915966327,0.00015731,95035.0,95034.0,0.210552]
[1739915969226,0.01621547,95035.0,95034.0,0.210552]
[1739915969738,0.00015731,95035.0,95034.0,0.210552]
[1739915970336,0.01572298,95054.0,95041.0,0.0526337]
[1739915970631,0.64229248,95076.0,95064.0,0.2104852]
[1739915970831,0.2104778,95068.0,95058.0,0.2104978]
[1739915971029,0.3608,95066.0,95049.0,0.0551]
[1739915971237,0.3608,95059.0,95048.0,0.3608]
[1739915971441,0.163,95058.0,95048.0,0.3608]
[1739915971635,0.163,95058.0,95056.0,0.2105031]
[1739915972533,0.163,95058.0,95045.0,0.0998]
[1739915972744,0.3608,95051.0,95045.0,0.0998]
[1739915972927,0.3608,95051.0,95044.0,0.0001578]
[1739915973239,0.2105241,95047.0,95044.0,0.0001578]
[1739915973434,0.1649,95046.0,95044.0,0.0001578]
[1739915974130,0.39113969,95046.0,95044.0,0.0001578]
[1739915976441,0.18061419,95046.0,95044.0,0.0001578]
[1739915976640,0.18061419,95046.0,95044.0,0.2106875]
[1739915980131,0.1649,95046.0,95044.0,0.2106875]
[1739915980336,0.3608,95051.0,95044.0,0.2106875]
[1739915980337,0.3608,95051.0,95050.0,0.2105165]
[1739915981145,0.3608,95051.0,95045.0,0.1082]
[1739915981146,0.18841838,95057.0,95049.0,0.01602851]
[1739915981349,0.18841838,95057.0,95056.0,0.2105032]
[1739915982839,0.18841838,95062.0,95061.0,0.2104922]
[1739915983045,0.01614501,95069.0,95061.0,0.0526229]
[1739915983250,0.2104572,95077.0,95072.0,0.2104663]
[1739915983440,0.2104572,95077.0,95074.0,0.2104632]
[1739915984345,0.111,95078.0,95066.0,0.0555]
[1739915984542,0.3608,95093.0,95077.0,0.2104567]
[1739915984749,0.111,95087.0,95086.0,0.2104368]
[1739915985045,0.3608,95093.0,95086.0,0.2104368]
[1739915985237,0.37670085,95093.0,95086.0,0.2104368]
[1739915985441,0.37730086,95093.0,95086.0,0.2104368]
[1739915986039,0.37730086,95093.0,95087.0,0.0603]
[1739915986440,0.36140001,95093.0,95087.0,0.0603]
[1739915986645,0.3608,95093.0,95087.0,0.0603]
[1739915986850,0.3608,95093.0,95088.0,0.2104324]
[1739915986851,0.21919348,95090.0,95088.0,0.2104324]
[1739915987252,0.21919348,95090.0,95088.0,0.2261686]
[1739915988744,0.21919348,95090.0,95088.0,0.2271686]
[1739915989056,0.25050684,95097.0,95096.0,0.2104147]
[1739915989353,0.25050684,95097.0,95096.0,0.5712147]
[1739915990256,0.25050684,95097.0,95096.0,0.6710147]
[1739915990555,0.0565,95122.0,95110.0,0.2103837]
[1739915990856,0.0565,95122.0,95110.0,0.5711837]
[1739915991546,0.0565,95122.0,95120.0,0.2103604]
[1739915992555,0.37696253,95125.0,95124.0,0.2103528]
[1739915992747,0.37696253,95125.0,95112.0,0.12805637]
[1739915992748,0.2103623,95120.0,95112.0,0.12805637]
[1739915992946,0.12805637,95122.0,95111.0,0.00015771]
[1739915993149,0.37752254,95125.0,95111.0,0.00015771]
[1739915993344,0.2103695,95117.0,95111.0,0.00015771]
[1739915993546,0.37696253,95125.0,95111.0,0.00015771]
[1739915993547,0.0588,95116.0,95111.0,0.00015771]
[1739915993751,0.2103793,95112.0,95111.0,0.00015771]
[1739915994452,0.36136001,95125.0,95123.0,0.2103546]
[1739915994654,0.36136001,95125.0,95116.0,0.2103698]
[1739915994655,0.37635169,95125.0,95116.0,0.2103698]
[1739915995658,0.37635169,95125.0,95115.0,0.12805637]
[1739915995961,0.37635169,95125.0,95123.0,0.001]
[1739915996346,0.37635169,95125.0,95123.0,0.211354]
[1739915997657,0.37635169,95125.0,95123.0,0.001]
[1739915997963,0.58670319,95125.0,95123.0,0.001]
[1739915998660,0.37635169,95125.0,95111.0,0.00015771]
[1739915998861,0.2103554,95123.0,95118.0,0.210365]
[1739915999761,0.2093554,95123.0,95118.0,0.210365]
[1739916000258,0.3769117,95125.0,95111.0,0.00015771]
[1739916000457,0.37635169,95125.0,95123.0,0.2103535]
[1739916000760,0.37635169,95125.0,95111.0,0.00015771]
[1739916000761,0.2103758,95114.0,95111.0,0.00015771]
[1739916000959,0.1156,95113.0,95111.0,0.00015771]
[1739916001155,0.1747,95113.0,95111.0,0.21053861]
[1739916001749,0.1747,95113.0,95111.0,0.00015771]
[1739916001953,0.1747,95113.0,95092.0,0.0998]
[1739916001954,0.18980333,95113.0,95092.0,0.0998]
[1739916002164,0.3608,95103.0,95092.0,0.0998]
[1739916002563,0.3608,95103.0,95101.0,0.2104023]
[1739916002755,0.19080333,95113.0,95111.0,0.2103799]
[1739916003262,0.19080333,95113.0,95103.0,0.12805637]
[1739916003263,0.00015742,95122.0,95120.0,0.2103611]
[1739916005564,0.00015742,95122.0,95120.0,0.22613713]
[1739916006162,0.00015742,95122.0,95120.0,0.22713713]
[1739916006163,0.00215742,95122.0,95120.0,0.22713713]
[1739916006565,0.3608,95144.0,95143.0,0.2103107]
[1739916007758,0.37710557,95144.0,95143.0,0.2103107]
[1739916008071,0.37710557,95144.0,95143.0,0.001]
[1739916009560,0.01630557,95144.0,95143.0,0.001]
[1739916009768,0.1825,95154.0,95143.0,0.001]
[1739916010064,0.1825,95154.0,95153.0,0.2102886]
[1739916010372,0.19703846,95154.0,95153.0,0.2102886]
[1739916010670,0.19703846,95154.0,95147.0,0.2103019]
[1739916011060,0.3608,95148.0,95143.0,0.001]
[1739916011257,0.3608,95148.0,95134.0,0.00015771]
[1739916011466,0.3608,95140.0,95134.0,0.00015771]
[1739916011659,0.112,95139.0,95134.0,0.00015771]
[1739916011863,0.2103268,95136.0,95134.0,0.00015771]
[1739916012069,0.2103373,95131.0,95114.0,0.2103736]
[1739916012287,0.3608,95121.0,95111.0,0.00805771]
[1739916012461,0.111,95120.0,95111.0,0.00805771]
[1739916012865,0.2103735,95115.0,95111.0,0.00805771]
[1739916013060,0.22511526,95115.0,95111.0,0.00805771]
[1739916013570,0.111,95120.0,95118.0,0.2103658]
[1739916013975,0.111,95120.0,95111.0,0.00805771]
[1739916013976,0.571165,95119.0,95111.0,0.21843821]
[1739916014165,0.210378,95113.0,95111.0,0.00805771]
[1739916014571,0.209378,95113.0,95111.0,0.00805771]
[1739916014969,0.3608,95119.0,95103.0,0.00015771]
[1739916014970,0.3608,95112.0,95103.0,0.00015771]
[1739916015272,0.3608,95104.0,95103.0,0.00015771]
[1739916018169,0.4185,95104.0,95103.0,0.00015771]
[1739916019072,0.4195,95104.0,95103.0,0.00015771]
[1739916019675,0.3618,95104.0,95103.0,0.00015771]
[1739916020668,0.3618,95104.0,95090.0,0.18867995]
[1739916020977,0.5712253,95092.0,95090.0,0.18867995]
[1739916021179,0.061,95091.0,95090.0,0.18867995]
[1739916021870,0.061,95091.0,95083.0,0.46201497]
[1739916022178,0.061,95091.0,95090.0,0.002]
[1739916023480,0.07607481,95091.0,95090.0,0.002]
[1739916023978,0.07607481,95091.0,95081.0,0.00015771]
[1739916024173,0.2104899,95062.0,95053.0,0.0608]
[1739916024374,0.5702899,95062.0,95053.0,0.0608]
[1739916024674,0.5702899,95062.0,95041.0,0.5713351]
[1739916024675,0.5702899,95062.0,95043.0,0.01485035]
[1739916024869,0.58487119,95062.0,95043.0,0.01485035]
[1739916025474,0.2065098,95054.0,95052.0,0.37429765]
[1739916025673,0.3608,95053.0,95052.0,0.37429765]
[1739916026267,0.3608,95053.0,95052.0,0.42969765]
[1739916027578,0.3588,95053.0,95052.0,0.42969765]
[1739916028178,0.3588,95053.0,95052.0,0.37829765]
[1739916028682,0.4154,95053.0,95052.0,0.37829765]
[1739916029276,0.3588,95053.0,95052.0,0.37829765]
[1739916029872,0.3588,95053.0,95052.0,0.00415771]
[1739916030279,0.3588,95053.0,95052.0,0.00015771]
[1739916030978,0.3598,95053.0,95052.0,0.00015771]
[1739916033083,0.3618,95053.0,95052.0,0.00015771]
[1739916033578,0.3588,95053.0,95052.0,0.00015771]
[1739916033773,0.3598,95053.0,95052.0,0.00015771]
[1739916036576,0.3588,95053.0,95052.0,0.00015771]
[1739916036775,0.3608,95053.0,95052.0,0.00015771]
[1739916038074,0.5713099,95053.0,95052.0,0.00015771]
[1739916038690,0.3608,95053.0,95052.0,0.00015771]
[1739916039983,0.3588,95053.0,95052.0,0.00015771]
[1739916040289,0.3608,95053.0,95052.0,0.00015771]
[1739916041176,0.3588,95053.0,95052.0,0.00015771]
[1739916041376,0.3618,95053.0,95052.0,0.00015771]
[1739916042782,0.3618,95053.0,95052.0,0.21066981]
[1739916042984,0.3588,95053.0,95052.0,0.21066981]
[1739916043188,0.3618,95053.0,95052.0,0.21066981]
[1739916043593,0.3588,95053.0,95052.0,0.21066981]
[1739916043782,0.3588,95053.0,95052.0,0.21366981]
[1739916045886,0.3588,95053.0,95052.0,0.00315771]
[1739916046087,0.5693099,95053.0,95052.0,0.00315771]
[1739916046387,0.5693099,95053.0,95052.0,0.00015771]
[1739916046590,0.5723099,95053.0,95052.0,0.00015771]
[1739916051484,0.3618,95053.0,95052.0,0.00015771]
[1739916051686,0.3618,95053.0,95052.0,0.21066981]
[1739916052298,0.16955717,95053.0,95052.0,0.21066981]
[1739916052996,0.16655717,95053.0,95052.0,0.21066981]
[1739916053199,0.16955717,95053.0,95052.0,0.21066981]
[1739916053699,0.16955717,95053.0,95052.0,0.00015771]
[1739916053700,0.003,95053.0,95052.0,0.00015771]
[1739916053894,0.003,95053.0,95052.0,0.21066981]
[1739916054201,0.37538129,95062.0,95052.0,0.00015771]
[1739916054392,0.002,95053.0,95052.0,0.21066981]
[1739916055700,0.2104925,95061.0,95052.0,0.21066981]
[1739916056000,0.2104925,95061.0,95052.0,0.00015771]
[1739916056189,0.2104925,95061.0,95053.0,0.3608]
[1739916056591,0.2104925,95061.0,95056.0,0.2105023]
[1739916056993,0.2114925,95061.0,95056.0,0.2105023]
[1739916058001,0.001,95061.0,95054.0,0.18804955]
[1739916058194,0.2104972,95059.0,95054.0,0.18804955]
[1739916058591,0.2104972,95059.0,95054.0,0.39855645]
[1739916059101,0.2104972,95059.0,95056.0,0.005]
[1739916060001,0.2114972,95059.0,95054.0,0.39855645]
[1739916060397,0.2114972,95059.0,95054.0,0.2105069]
[1739916060598,0.2105099,95053.0,95052.0,0.00015771]
[1739916062408,0.00056001,95062.0,95061.0,0.2104922]
[1739916062607,0.3608,95080.0,95070.0,0.2104722]
[1739916062803,0.48885637,95080.0,95070.0,0.5712722]
[1739916063303,0.01522684,95071.0,95070.0,0.3608]
[1739916063605,0.18835527,95062.0,95052.0,0.00015771]
[1739916063814,0.2105099,95053.0,95052.0,0.00015771]
[1739916064100,0.2105342,95042.0,95039.0,0.3608]
[1739916065801,0.2105342,95042.0,95037.0,0.18804955]
[1739916065999,0.061,95046.0,95037.0,0.18804955]
[1739916066300,0.001,95042.0,95037.0,0.18804955]
[1739916067101,0.2105307,95044.0,95037.0,0.18804955]
[1739916067305,0.2105326,95043.0,95037.0,0.18804955]
[1739916067503,0.2105326,95043.0,95035.0,0.2105491]
[1739916068712,0.001,95042.0,95035.0,0.2105491]
[1739916069208,0.2105326,95043.0,95035.0,0.2105491]
[1739916069512,0.2115326,95043.0,95035.0,0.2105491]
[1739916069898,0.001,95042.0,95035.0,0.2105491]
[1739916070594,0.001,95042.0,95032.0,0.05835781]
[1739916071601,0.2115326,95043.0,95032.0,0.05835781]
[1739916072004,0.2105326,95043.0,95032.0,0.05835781]
[1739916072204,0.2105542,95033.0,95032.0,0.05835781]
[1739916072503,0.2105542,95033.0,95032.0,0.00015781]
[1739916075315,0.2105542,95033.0,95032.0,0.00215781]
[1739916075512,0.10509955,95699.0,95032.0,0.21271391]
[1739916075513,0.2105314,95044.0,95032.0,0.21271391]
[1739916075707,0.24075637,95050.0,95033.0,0.1146]
[1739916076014,0.1127,95050.0,95033.0,0.1146]
[1739916076206,0.3232174,95050.0,95039.0,0.2105392]
[1739916076407,0.24075637,95050.0,95039.0,0.2105392]
[1739916077105,0.2105199,95049.0,95039.0,0.2105392]
[1739916077300,0.2105215,95048.0,95039.0,0.2105392]
[1739916077502,0.5713242,95047.0,95039.0,0.2105392]
[1739916077811,0.5713242,95047.0,95033.0,0.1166]
[1739916077812,0.18835527,95046.0,95044.0,0.5713292]
[1739916078117,0.18835527,95046.0,95045.0,0.0583]
[1739916079216,0.18993399,95053.0,95050.0,0.2105165]
[1739916079409,0.18993399,95053.0,95052.0,0.2105121]
[1739916079607,0.18993399,95053.0,95052.0,0.5713121]
[1739916080513,0.00473399,95053.0,95052.0,0.5713121]
[1739916080815,0.00015781,95062.0,95061.0,0.2104922]
[1739916081116,0.00015781,95062.0,95061.0,0.5712922]
[1739916081919,0.21064771,95062.0,95061.0,0.3608]
[1739916082115,0.2105099,95053.0,95052.0,0.36095781]
[1739916082614,0.2135099,95053.0,95052.0,0.36095781]
[1739916083008,0.2105099,95053.0,95052.0,0.36095781]
[1739916083611,0.2105099,95053.0,95052.0,0.36295781]
[1739916084210,0.2105099,95053.0,95052.0,0.00215781]
[1739916085109,0.2105099,95053.0,95052.0,0.00115781]
[1739916085714,0.2105099,95053.0,95052.0,0.00215781]
[1739916086312,0.2105099,95053.0,95052.0,0.00115781]
[1739916086512,0.2105034,95056.0,95052.0,0.00115781]
[1739916086708,0.0605,95061.0,95052.0,0.00115781]
[1739916086913,0.2105082,95054.0,95052.0,0.00115781]
[1739916088022,0.00015781,95062.0,95052.0,0.00115781]
[1739916088222,0.00015781,95062.0,95060.0,0.210494]
[1739916088523,0.00015781,95062.0,95061.0,0.0568]
[1739916089226,0.00315781,95062.0,95061.0,0.0568]
[1739916089724,0.00115781,95062.0,95061.0,0.0568]
[1739916090914,0.00115781,95062.0,95053.0,0.0569]
[1739916091118,0.2104978,95059.0,95053.0,0.0569]
[1739916091623,0.0606,95061.0,95053.0,0.0569]
[1739916091825,0.2104978,95059.0,95053.0,0.0569]
[1739916092423,0.2104978,95059.0,95053.0,0.0579]
[1739916092624,0.2105046,95056.0,95053.0,0.001]
[1739916092929,0.0606,95061.0,95057.0,0.2105008]
[1739916093315,0.00015781,95062.0,95060.0,0.2104944]
[1739916093519,0.00015781,95062.0,95061.0,0.0566]
[1739916094417,0.01408266,95067.0,95061.0,0.0566]
[1739916094622,0.00157801,95084.0,95082.0,0.2104448]
[1739916096322,0.00015781,95093.0,95082.0,0.0526113]
[1739916096625,0.00015781,95093.0,95092.0,0.5712235]
[1739916098422,0.00615781,95093.0,95092.0,0.5712235]
[1739916098824,0.00015781,95093.0,95092.0,0.5712235]
[1739916099015,0.00415781,95093.0,95092.0,0.5712235]
[1739916107028,0.00415781,95093.0,95092.0,0.3608]
[1739916111833,0.2104352,95087.0,95072.0,0.36237764]
[1739916112139,0.2104352,95087.0,95080.0,0.2104497]
[1739916112433,0.2104242,95092.0,95072.0,0.36237764]
[1739916112733,0.2104259,95091.0,95083.0,0.2104426]
[1739916112940,0.00415781,95093.0,95083.0,0.2104426]
[1739916113539,0.2104361,95087.0,95077.0,0.2104563]
[1739916113837,0.2104361,95087.0,95072.0,0.36237764]
[1739916114035,0.2104361,95087.0,95083.0,0.2104434]
[1739916115339,0.2114361,95087.0,95083.0,0.2104434]
[1739916118132,0.2104361,95087.0,95083.0,0.2104434]
[1739916118331,0.2114361,95087.0,95083.0,0.2104434]
[1739916118630,0.001,95087.0,95072.0,0.36237764]
[1739916118940,0.3186778,95086.0,95072.0,0.36237764]
[1739916119242,0.0568,95085.0,95081.0,0.2104478]
[1739916119746,0.1176,95084.0,95081.0,0.2104478]
[1739916120636,0.0578,95084.0,95082.0,0.2104446]
[1739916120838,0.00015781,95093.0,95077.0,0.3608]
[1739916121037,0.00015781,95093.0,95092.0,0.5712235]
[1739916122237,0.00415781,95093.0,95092.0,0.5712235]
[1739916128940,0.1158,95112.0,95111.0,0.2103815]
[1739916129242,0.01525869,95113.0,95111.0,0.2103815]
[1739916129437,0.00157764,95113.0,95112.0,0.0618]
[1739916131040,0.00157764,95113.0,95112.0,0.076121]
[1739916131242,0.00257764,95113.0,95112.0,0.076121]
[1739916132446,0.00157764,95113.0,95112.0,0.0688]
[1739916133050,0.01540317,95113.0,95112.0,0.007]
[1739916133239,0.21195474,95113.0,95112.0,0.007]
[1739916134539,0.21195474,95113.0,95112.0,0.001]
[1739916134743,0.01566638,95113.0,95112.0,0.001]
[1739916134944,0.01566638,95113.0,95112.0,0.3618]
[1739916135135,0.00157764,95113.0,95112.0,0.3618]
[1739916135339,0.00157764,95113.0,95112.0,0.5369]
[1739916135536,0.00015741,95122.0,95121.0,0.2103594]
[1739916136044,1.23383304,95140.0,95120.0,0.3608]
[1739916136045,0.18885667,95140.0,95120.0,0.3608]
[1739916136343,0.2103845,95110.0,95103.0,0.00015771]
[1739916136548,0.3608,95107.0,95103.0,0.00015771]
[1739916136751,0.2103955,95105.0,95103.0,0.00015771]
[1739916137249,0.22414683,95105.0,95103.0,0.00015771]
[1739916137843,0.22314683,95105.0,95103.0,0.00015771]
[1739916138443,0.22314683,95105.0,95103.0,0.00415771]
[1739916139549,0.3608,95104.0,95103.0,0.00415771]
[1739916139742,0.2104235,95092.0,95091.0,0.18804955]
[1739916139943,0.5712235,95092.0,95091.0,0.18804955]
[1739916140141,0.5712235,95092.0,95082.0,0.0578]
[1739916140142,0.3608,95092.0,95082.0,0.0578]
[1739916140350,0.2104285,95090.0,95082.0,0.0578]
[1739916140541,0.1851,95091.0,95082.0,0.0578]
[1739916140742,0.2104573,95077.0,95075.0,0.18804955]
[1739916140950,0.1234,95076.0,95075.0,0.18804955]
[1739916141149,0.1194,95076.0,95075.0,0.18804955]
[1739916141449,0.13376444,95076.0,95075.0,0.18804955]
[1739916141755,0.13176444,95076.0,95075.0,0.18804955]
[1739916142353,0.13176444,95076.0,95075.0,0.19204955]
[1739916142648,0.01436444,95076.0,95075.0,0.19204955]
[1739916142952,0.36136001,95083.0,95075.0,0.19204955]
[1739916143144,0.3608,95083.0,95075.0,0.19204955]
[1739916143544,0.3608,95083.0,95081.0,0.2104466]
[1739916143755,0.3608,95083.0,95076.0,0.00841]
[1739916144246,0.37496066,95083.0,95077.0,0.04207]
[1739916145042,0.58740466,95083.0,95077.0,0.04207]
[1739916145250,0.2104526,95079.0,95077.0,0.04207]
[1739916145644,0.2104612,95075.0,95074.0,0.00508]
[1739916145843,0.3608,95075.0,95070.0,0.05545]
[1739916146055,0.2104656,95073.0,95070.0,0.05545]
[1739916146452,0.2104656,95073.0,95071.0,0.00841]
[1739916146952,0.3,95073.0,95067.0,0.04207]
[1739916147157,0.2104767,95068.0,95067.0,0.03366]
[1739916147370,0.1810467,95068.0,95067.0,0.03366]
[1739916147750,0.1810467,95068.0,95063.0,0.05549]
[1739916147945,0.3608,95067.0,95063.0,0.05549]
[1739916150259,0.4266,95067.0,95063.0,0.05549]
[1739916150555,0.2104855,95064.0,95063.0,1e-08]
[1739916151647,0.2094855,95064.0,95063.0,1e-08]
[1739916152248,0.2154855,95064.0,95063.0,1e-08]
[1739916153059,0.9370855,95064.0,95063.0,1e-08]
[1739916153859,0.9370855,95064.0,95063.0,0.00100001]
[1739916154453,0.7276,95064.0,95063.0,0.00100001]
[1739916154660,1.0402855,95064.0,95063.0,1e-08]
[1739916154956,0.9320855,95064.0,95063.0,1e-08]
[1739916155154,0.9390855,95064.0,95063.0,1e-08]
[1739916155562,0.75492528,95064.0,95063.0,1e-08]
[1739916155753,0.74792528,95064.0,95063.0,0.00100001]
[1739916156054,0.2104966,95059.0,95058.0,0.04207]
[1739916156458,0.2105054,95055.0,95054.0,0.00015771]
[1739916157359,0.2095054,95055.0,95054.0,0.00015771]
[1739916158059,0.004,95055.0,95054.0,0.00015771]
[1739916158858,0.210504,95056.0,95054.0,0.00015771]
[1739916159050,0.005,95055.0,95054.0,0.00015771]
[1739916160461,0.214504,95056.0,95054.0,0.00015771]
[1739916160958,0.004,95055.0,95054.0,0.00015771]
[1739916161660,0.214504,95056.0,95054.0,0.00015771]
[1739916162251,0.210504,95056.0,95055.0,0.00841]
[1739916163862,0.214504,95056.0,95055.0,0.00841]
[1739916164258,0.210504,95056.0,95055.0,0.00841]
[1739916164462,0.214504,95056.0,95055.0,0.00841]
[1739916165354,0.210504,95056.0,95055.0,0.00841]
[1739916165554,0.214504,95056.0,95055.0,0.00841]
[1739916166950,0.210504,95056.0,95055.0,0.07111]
[1739916167163,0.214504,95056.0,95055.0,0.07111]
[1739916168363,0.210504,95056.0,95055.0,0.07311]
[1739916169872,0.210504,95056.0,95055.0,0.07111]
[1739916170067,0.210504,95056.0,95055.0,0.07311]
[1739916170660,0.215504,95056.0,95055.0,0.07111]
[1739916170865,0.215504,95056.0,95055.0,0.00841]
[1739916178475,0.005,95056.0,95055.0,0.2189154]
[1739916178975,0.005,95056.0,95055.0,0.00841]
[1739916179174,0.2155032,95056.0,95055.0,0.00841]
[1739916179676,0.2105032,95056.0,95055.0,0.01041]
[1739916180870,0.2135032,95056.0,95055.0,0.00841]
[1739916181274,0.2105032,95056.0,95055.0,0.00841]
[1739916181583,0.2135032,95056.0,95055.0,0.00841]
[1739916182875,0.003,95056.0,95055.0,0.00841]
[1739916183968,0.2105032,95056.0,95055.0,0.00841]
[1739916184269,0.003,95056.0,95055.0,0.00841]
[1739916186180,0.210501,95057.0,95056.0,0.03908]
[1739916186475,0.18951497,95061.0,95056.0,0.03908]
[1739916187190,0.2104967,95059.0,95056.0,0.03908]
[1739916187571,0.2104967,95059.0,95054.0,0.00015771]
[1739916189281,0.19251497,95061.0,95054.0,0.00015771]
[1739916189482,0.2105054,95055.0,95054.0,0.00015771]
[1739916189981,0.5713054,95055.0,95054.0,0.00015771]
[1739916193082,0.5743054,95055.0,95054.0,0.00015771]
[1739916194385,0.5713054,95055.0,95054.0,0.00015771]
[1739916194585,0.5733054,95055.0,95054.0,0.00015771]
[1739916195383,0.63430794,95055.0,95054.0,0.00015771]
[1739916195886,0.63430794,95055.0,95054.0,0.00856771]
[1739916196987,0.210551,95035.0,95020.0,0.25173011]
[1739916197182,0.210551,95035.0,95027.0,0.1925]
[1739916197883,0.0684,95038.0,95027.0,0.1925]
[1739916198080,0.0684,95038.0,95033.0,0.0035784]
[1739916198279,0.2105461,95037.0,95033.0,0.19162795]
[1739916198791,0.0684,95038.0,95033.0,0.19162795]
[1739916198980,0.2105461,95037.0,95033.0,0.19162795]
[1739916199176,0.22492457,95037.0,95033.0,0.19162795]
[1739916199375,0.01437847,95037.0,95033.0,0.19162795]
[1739916199585,0.2105511,95035.0,95033.0,0.19162795]
[1739916200680,0.2105511,95035.0,95033.0,0.18962795]
[1739916200876,0.2105511,95035.0,95033.0,0.19162795]
[1739916201177,0.2105511,95035.0,95033.0,0.19004955]
[1739916201678,0.2105586,95031.0,95030.0,0.04209]
[1739916201884,0.5713586,95031.0,95030.0,0.04209]
[1739916202187,0.2105712,95026.0,95024.0,0.00015779]
[1739916202686,0.2095712,95026.0,95024.0,0.00015779]
[1739916203287,0.2085712,95026.0,95024.0,0.00015779]
[1739916203791,0.2085712,95026.0,95024.0,0.00315779]
[1739916204196,0.2085712,95026.0,95024.0,0.01000779]
[1739916205286,0.42726001,95030.0,95024.0,0.01000779]
[1739916205481,0.4267,95030.0,95024.0,0.01000779]
[1739916205688,0.2105698,95026.0,95024.0,0.00900779]
[1739916206193,0.2105698,95026.0,95024.0,0.00700779]
[1739916206392,0.2115698,95026.0,95024.0,0.00700779]
[1739916206696,0.2105698,95026.0,95024.0,0.00700779]
[1739916206892,0.2115698,95026.0,95024.0,0.00700779]
[1739916208393,0.2105719,95025.0,95024.0,0.00700779]
[1739916211092,0.42726001,95030.0,95024.0,0.00700779]
[1739916211093,0.36136001,95030.0,95024.0,0.00700779]
[1739916211299,0.3608,95030.0,95024.0,0.00700779]
[1739916211596,0.2105719,95025.0,95024.0,0.00700779]
[1739916220011,0.2105786,95022.0,95021.0,0.00123587]
[1739916220503,0.2106008,95012.0,95007.0,0.1943]
[1739916222198,0.22426749,95012.0,95007.0,0.1943]
[1739916222408,0.22526749,95012.0,95007.0,0.1983]
[1739916223398,0.22426749,95012.0,95007.0,0.1943]
[1739916223599,0.22526749,95012.0,95007.0,0.1983]
[1739916224800,0.01466669,95012.0,95007.0,0.1983]
[1739916225704,0.01466669,95012.0,95007.0,0.4089117]
[1739916225903,0.01366669,95012.0,95007.0,0.4069117]
[1739916226090,0.33864627,95017.0,95007.0,0.4069117]
[1739916226497,0.35217142,95017.0,95009.0,0.2106073]
[1739916226692,0.14158152,95017.0,95009.0,0.2106073]
[1739916226898,0.14158152,95017.0,95013.0,0.2105979]
[1739916227100,0.01352515,95017.0,95013.0,0.2105979]
[1739916227298,0.00015788,95019.0,95013.0,0.2105979]
[1739916227503,0.00015788,95019.0,95008.0,0.2106094]
[1739916227705,0.21074328,95019.0,95007.0,0.1963]
[1739916227899,0.21074328,95019.0,95011.0,0.2106026]
[1739916228214,0.00015788,95019.0,95011.0,0.2106026]
[1739916228408,0.2105886,95018.0,95011.0,0.2106026]
[1739916228807,0.22449576,95018.0,95011.0,0.2106026]
[1739916230107,0.01390716,95018.0,95012.0,0.2105999]
[1739916230306,0.00015788,95019.0,95012.0,0.3608]
[1739916230502,0.00015788,95019.0,95018.0,0.2105874]
[1739916231401,0.01348319,95019.0,95013.0,0.252687]
[1739916231605,0.00015788,95019.0,95015.0,0.2105934]
[1739916232311,0.00215788,95019.0,95015.0,0.2105934]
[1739916232512,0.00015788,95019.0,95015.0,0.2105934]
[1739916232812,0.00115788,95019.0,95015.0,0.2105934]